Department,Entity,Date of Payment,Expense Type,Expense Area,Supplier,Transaction Number,Amount,Description,Supplier Postcode
"Department for Business, Innovation and Skills",UK Shared Business Services Ltd,03/01/2023,IT Cloud Services,Production Services,FlyForm Ltd,99871358,"4,999.20",Computing Software,CF10 3AG
"Department for Business, Innovation and Skills",UK Shared Business Services Ltd,03/01/2023,Hardware/Software Maintenance,Production Services,Softcat plc,99872247,"17,266.70",Computing Software,SL7 1LW
"Department for Business, Innovation and Skills",UK Shared Business Services Ltd,03/01/2023,Computer Software,SIAM,Softcat plc,99872248,"2,091.74",Computing Software,SL7 1LW
"Department for Business, Innovation and Skills",UK Shared Business Services Ltd,04/01/2023,Agency Staff,ROE Application Upgrade,Alexander Mann Solutions Ltd,99871465,"4,090.44",Recruitment Services,EC2N 3AQ
"Department for Business, Innovation and Skills",UK Shared Business Services Ltd,04/01/2023,Contract Staff,SHARP,Alexander Mann Solutions Ltd,99872327,"3,387.66",Recruitment Services,EC2N 3AQ
"Department for Business, Innovation and Skills",UK Shared Business Services Ltd,04/01/2023,Contract Staff,People,Alexander Mann Solutions Ltd,99872333,"7,696.44",Recruitment Services,EC2N 3AQ
"Department for Business, Innovation and Skills",UK Shared Business Services Ltd,04/01/2023,Conferences & Seminars,Contact Centres,Calder Conference Ltd,99872438,"1,968.00",Conference & Venues,LS16 6RF
"Department for Business, Innovation and Skills",UK Shared Business Services Ltd,04/01/2023,T&S - Mileage,Accounting,Unspecified,99872503,106.20,Mileage - Car (excl Home to Office),HOME
"Department for Business, Innovation and Skills",UK Shared Business Services Ltd,04/01/2023,T&S - Mileage,D&I Infrastructure & Network Services,Unspecified,99872504,73.50,Mileage - Car (excl Home to Office),HOME
"Department for Business, Innovation and Skills",UK Shared Business Services Ltd,04/01/2023,T&S - Subsistence,D&I Infrastructure & Network Services,Unspecified,99872504,8.05,Lunch (Actuals),HOME
"Department for Business, Innovation and Skills",UK Shared Business Services Ltd,05/01/2023,Recruitment Costs,Corporate HR,Everwell Occupational Health Ltd,99871449,252.00,Professional Services,CW11 3AE
"Department for Business, Innovation and Skills",UK Shared Business Services Ltd,05/01/2023,Hardware/Software Maintenance,Production Services,UKRI - Engineering & Physical Sciences Research Council,99871639,"70,045.00",Computer Consumables,INTERCO
"Department for Business, Innovation and Skills",UK Shared Business Services Ltd,05/01/2023,Building Rents,Corporate Finance,UKRI - Engineering & Physical Sciences Research Council,99871640,"619,853.60",ZZ-Rent & Rates,INTERCO
"Department for Business, Innovation and Skills",UK Shared Business Services Ltd,05/01/2023,Recruitment Costs,Corporate HR,Agenda Resource Management Ltd,99872380,280.56,Professional Services,HU12 8YJ
"Department for Business, Innovation and Skills",UK Shared Business Services Ltd,05/01/2023,Health & Safety (inc. Medicals & Opticians),D&I Operations,Unspecified,99872785,80.00,Medical Fees & Vaccinations (Actuals),HOME
"Department for Business, Innovation and Skills",UK Shared Business Services Ltd,05/01/2023,UK - Professional Memberships & Subscriptions,D&I Operations,Unspecified,99872785,41.47,Professional Subscriptions (Actuals),HOME
"Department for Business, Innovation and Skills",UK Shared Business Services Ltd,06/01/2023,Consultancy Services,Corporate HR,JobTrolley Ltd,99872883,"9,460.25",Consultancy Services,MK9 1LR
"Department for Business, Innovation and Skills",UK Shared Business Services Ltd,09/01/2023,Computing Consumables,D&I Management,Unspecified,99868815,135.81,GPC_Computer Consumables,HOME
"Department for Business, Innovation and Skills",UK Shared Business Services Ltd,09/01/2023,GPC Clearing - SSC,Balance Sheet,Unspecified,99868815,-135.81,Unspecified,HOME
"Department for Business, Innovation and Skills",UK Shared Business Services Ltd,09/01/2023,Consultancy Services,Production Services,SureCloud Ltd,99869704,"4,500.00",Computer Consumables,RG1 1NU
"Department for Business, Innovation and Skills",UK Shared Business Services Ltd,09/01/2023,Computer Software,D&I Management,Unspecified,99870580,339.03,GPC_Computer Software,HOME
"Department for Business, Innovation and Skills",UK Shared Business Services Ltd,09/01/2023,GPC Clearing - SSC,Balance Sheet,Unspecified,99870580,-339.03,Unspecified,HOME
"Department for Business, Innovation and Skills",UK Shared Business Services Ltd,09/01/2023,GPC Clearing - SSC,Balance Sheet,Unspecified,99870581,-52.92,Unspecified,HOME
"Department for Business, Innovation and Skills",UK Shared Business Services Ltd,09/01/2023,GPC Sundry Expenditure,D&I Management,Unspecified,99870581,52.92,GPC_Miscellaneous GPC Expenditure,HOME
"Department for Business, Innovation and Skills",UK Shared Business Services Ltd,09/01/2023,Computing Consumables,D&I Management,Unspecified,99871414,160.74,GPC_Computer Consumables,HOME
"Department for Business, Innovation and Skills",UK Shared Business Services Ltd,09/01/2023,GPC Clearing - SSC,Balance Sheet,Unspecified,99871414,-160.74,Unspecified,HOME
"Department for Business, Innovation and Skills",UK Shared Business Services Ltd,09/01/2023,T&S - Public Transport,Communications,Corporate Travel Management (North) Ltd,99873389,0.25,15/12/2022---Rail Fee,BD1 5HQ
"Department for Business, Innovation and Skills",UK Shared Business Services Ltd,09/01/2023,T&S - Public Transport,Communications,Corporate Travel Management (North) Ltd,99873389,35.00,15/12/2022-Newport S.wales-Swindon-Rail,BD1 5HQ
"Department for Business, Innovation and Skills",UK Shared Business Services Ltd,09/01/2023,T&S - Accommodation,Central Services Management,Corporate Travel Management (North) Ltd,99873389,0.80,13/12/2022---Hotel Fee,BD1 5HQ
"Department for Business, Innovation and Skills",UK Shared Business Services Ltd,09/01/2023,T&S - Accommodation,Central Services Management,Corporate Travel Management (North) Ltd,99873389,150.00,13/12/2022-Jurys Inn Swindon-Bristol-Hotel,BD1 5HQ
"Department for Business, Innovation and Skills",UK Shared Business Services Ltd,09/01/2023,T&S - Accommodation,Central Services Management,Corporate Travel Management (North) Ltd,99873389,0.16,Travel & Hotel charges,BD1 5HQ
"Department for Business, Innovation and Skills",UK Shared Business Services Ltd,09/01/2023,T&S - Accommodation,EABA,Corporate Travel Management (North) Ltd,99873389,0.80,07/12/2022---Hotel Fee,BD1 5HQ
"Department for Business, Innovation and Skills",UK Shared Business Services Ltd,09/01/2023,T&S - Accommodation,EABA,Corporate Travel Management (North) Ltd,99873389,116.28,07/12/2022-Travelodge Swindon Central-Swindon-Hotel,BD1 5HQ
"Department for Business, Innovation and Skills",UK Shared Business Services Ltd,09/01/2023,T&S - Accommodation,EABA,Corporate Travel Management (North) Ltd,99873389,0.16,Travel & Hotel charges,BD1 5HQ
"Department for Business, Innovation and Skills",UK Shared Business Services Ltd,09/01/2023,T&S - Accommodation,HR Ops,Corporate Travel Management (North) Ltd,99873389,0.80,05/12/2022---Hotel Fee,BD1 5HQ
"Department for Business, Innovation and Skills",UK Shared Business Services Ltd,09/01/2023,T&S - Accommodation,HR Ops,Corporate Travel Management (North) Ltd,99873389,107.00,05/12/2022-Doubletree By Hilton Swindon-Bristol-Hotel,BD1 5HQ
"Department for Business, Innovation and Skills",UK Shared Business Services Ltd,09/01/2023,T&S - Accommodation,HR Ops,Corporate Travel Management (North) Ltd,99873389,0.80,13/12/2022---Hotel Fee,BD1 5HQ
"Department for Business, Innovation and Skills",UK Shared Business Services Ltd,09/01/2023,T&S - Accommodation,HR Ops,Corporate Travel Management (North) Ltd,99873389,86.58,13/12/2022-Travelodge Swindon Central-Swindon-Hotel,BD1 5HQ
"Department for Business, Innovation and Skills",UK Shared Business Services Ltd,09/01/2023,T&S - Accommodation,HR Ops,Corporate Travel Management (North) Ltd,99873389,0.32,Travel & Hotel charges,BD1 5HQ
"Department for Business, Innovation and Skills",UK Shared Business Services Ltd,09/01/2023,T&S - Accommodation,Partnership Management,Corporate Travel Management (North) Ltd,99873389,0.80,11/01/2023---Hotel Fee,BD1 5HQ
"Department for Business, Innovation and Skills",UK Shared Business Services Ltd,09/01/2023,T&S - Accommodation,Partnership Management,Corporate Travel Management (North) Ltd,99873389,56.04,11/01/2023-Travelodge Swindon Central-Swindon-Hotel,BD1 5HQ
"Department for Business, Innovation and Skills",UK Shared Business Services Ltd,09/01/2023,T&S - Accommodation,Partnership Management,Corporate Travel Management (North) Ltd,99873389,0.16,Travel & Hotel charges,BD1 5HQ
"Department for Business, Innovation and Skills",UK Shared Business Services Ltd,09/01/2023,T&S - Other Charges,EABA,Corporate Travel Management (North) Ltd,99873389,2.60,07/12/2022---Rail Fee,BD1 5HQ
"Department for Business, Innovation and Skills",UK Shared Business Services Ltd,09/01/2023,T&S - Other Charges,EABA,Corporate Travel Management (North) Ltd,99873389,204.00,07/12/2022-Middlesbrough-Swindon-Rail,BD1 5HQ
"Department for Business, Innovation and Skills",UK Shared Business Services Ltd,09/01/2023,T&S - Public Transport,Accounting,Corporate Travel Management (North) Ltd,99873389,0.25,14/12/2022---Rail Fee,BD1 5HQ
"Department for Business, Innovation and Skills",UK Shared Business Services Ltd,09/01/2023,T&S - Public Transport,Accounting,Corporate Travel Management (North) Ltd,99873389,27.50,14/12/2022-Cardiff Central-Swindon-Rail,BD1 5HQ
"Department for Business, Innovation and Skills",UK Shared Business Services Ltd,09/01/2023,T&S - Public Transport,Category and Continuous Improvement,Corporate Travel Management (North) Ltd,99873389,0.25,06/12/2022---Rail Fee,BD1 5HQ
"Department for Business, Innovation and Skills",UK Shared Business Services Ltd,09/01/2023,T&S - Public Transport,Category and Continuous Improvement,Corporate Travel Management (North) Ltd,99873389,26.20,06/12/2022-Bristol Parkway-Swindon-Rail,BD1 5HQ
"Department for Business, Innovation and Skills",UK Shared Business Services Ltd,09/01/2023,T&S - Public Transport,Category and Continuous Improvement,Corporate Travel Management (North) Ltd,99873389,0.25,09/12/2022---Rail Fee,BD1 5HQ
"Department for Business, Innovation and Skills",UK Shared Business Services Ltd,09/01/2023,T&S - Public Transport,Category and Continuous Improvement,Corporate Travel Management (North) Ltd,99873389,26.20,09/12/2022-Bristol Parkway-Swindon-Rail,BD1 5HQ
"Department for Business, Innovation and Skills",UK Shared Business Services Ltd,09/01/2023,T&S - Public Transport,Category and Continuous Improvement,Corporate Travel Management (North) Ltd,99873389,0.25,13/12/2022---Rail Fee,BD1 5HQ
"Department for Business, Innovation and Skills",UK Shared Business Services Ltd,09/01/2023,T&S - Public Transport,Category and Continuous Improvement,Corporate Travel Management (North) Ltd,99873389,21.40,13/12/2022-Bristol Parkway-Swindon-Rail,BD1 5HQ
"Department for Business, Innovation and Skills",UK Shared Business Services Ltd,09/01/2023,T&S - Public Transport,Category and Continuous Improvement,Corporate Travel Management (North) Ltd,99873389,0.25,20/12/2022---Rail Fee,BD1 5HQ
"Department for Business, Innovation and Skills",UK Shared Business Services Ltd,09/01/2023,T&S - Public Transport,Category and Continuous Improvement,Corporate Travel Management (North) Ltd,99873389,49.20,20/12/2022-Bridgend-Swindon-Rail,BD1 5HQ
"Department for Business, Innovation and Skills",UK Shared Business Services Ltd,09/01/2023,T&S - Public Transport,Communications,Corporate Travel Management (North) Ltd,99873389,0.25,06/12/2022---Rail Fee,BD1 5HQ
"Department for Business, Innovation and Skills",UK Shared Business Services Ltd,09/01/2023,T&S - Public Transport,Communications,Corporate Travel Management (North) Ltd,99873389,35.00,06/12/2022-Newport S.wales-Swindon-Rail,BD1 5HQ
"Department for Business, Innovation and Skills",UK Shared Business Services Ltd,09/01/2023,T&S - Public Transport,D&I Operations,Corporate Travel Management (North) Ltd,99873389,0.25,06/12/2022---Rail Fee,BD1 5HQ
"Department for Business, Innovation and Skills",UK Shared Business Services Ltd,09/01/2023,T&S - Public Transport,D&I Operations,Corporate Travel Management (North) Ltd,99873389,40.70,06/12/2022-Cardiff Central-Swindon-Rail,BD1 5HQ
"Department for Business, Innovation and Skills",UK Shared Business Services Ltd,09/01/2023,T&S - Public Transport,D&I Operations,Corporate Travel Management (North) Ltd,99873389,0.25,16/12/2022---Rail Fee,BD1 5HQ
"Department for Business, Innovation and Skills",UK Shared Business Services Ltd,09/01/2023,T&S - Public Transport,D&I Operations,Corporate Travel Management (North) Ltd,99873389,40.70,16/12/2022-Cardiff Central-Swindon-Rail,BD1 5HQ
"Department for Business, Innovation and Skills",UK Shared Business Services Ltd,09/01/2023,T&S - Public Transport,D&I Operations,Corporate Travel Management (North) Ltd,99873389,5.00,17/11/2022---Rail Fee,BD1 5HQ
"Department for Business, Innovation and Skills",UK Shared Business Services Ltd,09/01/2023,T&S - Public Transport,D&I Operations,Corporate Travel Management (North) Ltd,99873389,-153.70,17/11/2022-Swindon (wilts)-London Paddington-Rail,BD1 5HQ
"Department for Business, Innovation and Skills",UK Shared Business Services Ltd,09/01/2023,T&S - Public Transport,D&I Operations,Corporate Travel Management (North) Ltd,99873389,5.00,17/11/2022---Rail Fee,BD1 5HQ
"Department for Business, Innovation and Skills",UK Shared Business Services Ltd,09/01/2023,T&S - Public Transport,D&I Operations,Corporate Travel Management (North) Ltd,99873389,-153.70,17/11/2022-Swindon (wilts)-London Paddington-Rail,BD1 5HQ
"Department for Business, Innovation and Skills",UK Shared Business Services Ltd,09/01/2023,T&S - Public Transport,D&I Operations,Corporate Travel Management (North) Ltd,99873389,5.00,17/11/2022---Rail Fee,BD1 5HQ
"Department for Business, Innovation and Skills",UK Shared Business Services Ltd,09/01/2023,T&S - Public Transport,D&I Operations,Corporate Travel Management (North) Ltd,99873389,-153.70,17/11/2022-Swindon (wilts)-London Paddington-Rail,BD1 5HQ
"Department for Business, Innovation and Skills",UK Shared Business Services Ltd,09/01/2023,T&S - Public Transport,EABA,Corporate Travel Management (North) Ltd,99873389,0.25,07/12/2022---Rail Fee,BD1 5HQ
"Department for Business, Innovation and Skills",UK Shared Business Services Ltd,09/01/2023,T&S - Public Transport,EABA,Corporate Travel Management (North) Ltd,99873389,204.00,07/12/2022-Middlesbrough-Swindon-Rail,BD1 5HQ
"Department for Business, Innovation and Skills",UK Shared Business Services Ltd,09/01/2023,T&S - Public Transport,HR Management,Corporate Travel Management (North) Ltd,99873389,10.00,21/09/2022---Rail Fee,BD1 5HQ
"Department for Business, Innovation and Skills",UK Shared Business Services Ltd,09/01/2023,T&S - Public Transport,HR Management,Corporate Travel Management (North) Ltd,99873389,-161.50,21/09/2022-Swindon (wilts)-London Paddington-Rail,BD1 5HQ
"Department for Business, Innovation and Skills",UK Shared Business Services Ltd,09/01/2023,T&S - Public Transport,HR Management,Corporate Travel Management (North) Ltd,99873389,10.00,21/09/2022---Rail Fee,BD1 5HQ
"Department for Business, Innovation and Skills",UK Shared Business Services Ltd,09/01/2023,T&S - Public Transport,HR Management,Corporate Travel Management (North) Ltd,99873389,-161.50,21/09/2022-Swindon (wilts)-London Paddington-Rail,BD1 5HQ
"Department for Business, Innovation and Skills",UK Shared Business Services Ltd,09/01/2023,T&S - Public Transport,HR Ops,Corporate Travel Management (North) Ltd,99873389,0.25,13/12/2022---Rail Fee,BD1 5HQ
"Department for Business, Innovation and Skills",UK Shared Business Services Ltd,09/01/2023,T&S - Public Transport,HR Ops,Corporate Travel Management (North) Ltd,99873389,301.60,13/12/2022-Darlington-Swindon-Rail,BD1 5HQ
"Department for Business, Innovation and Skills",UK Shared Business Services Ltd,09/01/2023,T&S - Public Transport,SIAM,Corporate Travel Management (North) Ltd,99873389,0.25,06/12/2022---Rail Fee,BD1 5HQ
"Department for Business, Innovation and Skills",UK Shared Business Services Ltd,09/01/2023,T&S - Public Transport,SIAM,Corporate Travel Management (North) Ltd,99873389,40.70,06/12/2022-Cardiff Central-Swindon-Rail,BD1 5HQ
"Department for Business, Innovation and Skills",UK Shared Business Services Ltd,09/01/2023,T&S - Public Transport,SIAM,Corporate Travel Management (North) Ltd,99873389,0.25,08/12/2022---Rail Fee,BD1 5HQ
"Department for Business, Innovation and Skills",UK Shared Business Services Ltd,09/01/2023,T&S - Public Transport,SIAM,Corporate Travel Management (North) Ltd,99873389,40.70,08/12/2022-Cardiff Central-Swindon-Rail,BD1 5HQ
"Department for Business, Innovation and Skills",UK Shared Business Services Ltd,09/01/2023,Staff Training,Executive Function,UK Training (Worldwide) Ltd,99873430,322.80,Training,L37 4AN
"Department for Business, Innovation and Skills",UK Shared Business Services Ltd,09/01/2023,Recruitment Costs,Production Services,Skillsbay Ltd,99873437,"9,000.00",Recruitment Services,SW6 3JD
"Department for Business, Innovation and Skills",UK Shared Business Services Ltd,09/01/2023,Contract Staff,D&I Management,Alexander Mann Solutions Ltd,99873453,"4,237.63",Recruitment Services,EC2N 3AQ
"Department for Business, Innovation and Skills",UK Shared Business Services Ltd,09/01/2023,Conferences & Seminars,Tier 1 ROE Transactions,Unspecified,99873492,"2,000.00",Conference/Course Fees (Actuals),HOME
"Department for Business, Innovation and Skills",UK Shared Business Services Ltd,09/01/2023,UK - Professional Memberships & Subscriptions,Accounting,Unspecified,99873493,283.00,Professional Subscriptions (Actuals),HOME
"Department for Business, Innovation and Skills",UK Shared Business Services Ltd,09/01/2023,UK - Professional Memberships & Subscriptions,"Risk, Information & Security Compliance",Unspecified,99873494,70.52,Professional Subscriptions (Actuals),HOME
"Department for Business, Innovation and Skills",UK Shared Business Services Ltd,09/01/2023,Contract Staff,SHARP,Alexander Mann Solutions Ltd,99874185,"5,420.26",Recruitment Services,EC2N 3AQ
"Department for Business, Innovation and Skills",UK Shared Business Services Ltd,09/01/2023,Agency Staff,ROE Application Upgrade,Alexander Mann Solutions Ltd,99874192,"2,454.26",Recruitment Services,EC2N 3AQ
"Department for Business, Innovation and Skills",UK Shared Business Services Ltd,09/01/2023,Contract Staff,Production Services,Alexander Mann Solutions Ltd,99874202,"15,398.10",Recruitment Services,EC2N 3AQ
"Department for Business, Innovation and Skills",UK Shared Business Services Ltd,09/01/2023,Contract Staff,Production Services,Alexander Mann Solutions Ltd,99874204,"5,544.48",Recruitment Services,EC2N 3AQ
"Department for Business, Innovation and Skills",UK Shared Business Services Ltd,10/01/2023,Computer Software,Production Services,BSI Assurance UK Ltd,99837982,"1,590.00",Computer Consumables,MK1 9EL
"Department for Business, Innovation and Skills",UK Shared Business Services Ltd,10/01/2023,Computer Software,Production Services,BSI Assurance UK Ltd,99837982,180.00,Computer Consumables,MK1 9EL
"Department for Business, Innovation and Skills",UK Shared Business Services Ltd,10/01/2023,Computer Software,Production Services,BSI Assurance UK Ltd,99837983,"1,710.00",Computer Consumables,MK1 9EL
"Department for Business, Innovation and Skills",UK Shared Business Services Ltd,10/01/2023,Computer Software,Production Services,BSI Assurance UK Ltd,99837983,60.00,Computer Consumables,MK1 9EL
"Department for Business, Innovation and Skills",UK Shared Business Services Ltd,10/01/2023,Computer Software Licences,ERP Support,Oracle Corporation UK Ltd,99860239,"171,120.00",Program Technical Support Services: Business Critical Fixes and Limited Updates for Oracle E-Business Suite -Enterprise (Year 2 - 2023),RG6 1RA
"Department for Business, Innovation and Skills",UK Shared Business Services Ltd,10/01/2023,Staff Training,HRSD Recoverables,PDP Companies Ltd,99864814,"3,234.00",Training,SW9 6DE - Invoi
"Department for Business, Innovation and Skills",UK Shared Business Services Ltd,10/01/2023,Contract Staff,Production Services,Alexander Mann Solutions Ltd,99872329,"2,740.74",Recruitment Services,EC2N 3AQ
"Department for Business, Innovation and Skills",UK Shared Business Services Ltd,10/01/2023,Staff Training,HRSD Recoverables,ASK Europe PLC,99874338,504.00,Training,MK43 0BT
"Department for Business, Innovation and Skills",UK Shared Business Services Ltd,10/01/2023,Data Storage & Recovery,Finance Operations 1,The Maltings Document Storage Solutions Ltd,99874340,307.54,Computing Services,CF24 5EZ
"Department for Business, Innovation and Skills",UK Shared Business Services Ltd,10/01/2023,UK - Professional Memberships & Subscriptions,Major Programmes,Unspecified,99874551,262.85,Professional Subscriptions (Actuals),HOME
"Department for Business, Innovation and Skills",UK Shared Business Services Ltd,10/01/2023,UK - Professional Memberships & Subscriptions,Executive Function,Unspecified,99874553,415.00,Professional Subscriptions (Actuals),HOME
"Department for Business, Innovation and Skills",UK Shared Business Services Ltd,10/01/2023,T&S - Mileage,UK SBS Data,Unspecified,99874554,63.23,Mileage - Car (excl Home to Office),HOME
"Department for Business, Innovation and Skills",UK Shared Business Services Ltd,10/01/2023,Consultancy Services,Production Services,Premiertec Consulting Ltd t/a Claremont,99875071,"56,038.15","Consultancy and Professional Services to develop two key work areas around API re-development and re-use, and automation of features connected to the primary and sub-processes associated with the SML process. Also included: BAU, CIs and CRs",NE1 3DY
"Department for Business, Innovation and Skills",UK Shared Business Services Ltd,10/01/2023,Tax Advice,Corporate Finance,KPMG LLP,99875116,"2,370.00",Professional Services,WD17 1DE
"Department for Business, Innovation and Skills",UK Shared Business Services Ltd,10/01/2023,Tax Advice,Corporate Finance,KPMG LLP,99875119,"1,200.00",Professional Services,WD17 1DE
"Department for Business, Innovation and Skills",UK Shared Business Services Ltd,10/01/2023,Mobile Phone Costs,Production Services,Telefonica UK Ltd (O2),99875178,"1,442.40",SR 11454244 CALL CHARGES,SMARTFORM
"Department for Business, Innovation and Skills",UK Shared Business Services Ltd,11/01/2023,Agency Staff,Contact Centres,Hays Specialist Recruitment Ltd,99872494,"2,765.66",Recruitment Services,KT3 4QF
"Department for Business, Innovation and Skills",UK Shared Business Services Ltd,11/01/2023,UK - Professional Memberships & Subscriptions,Corporate Finance,Unspecified,99874718,329.00,Professional Subscriptions (Actuals),HOME
"Department for Business, Innovation and Skills",UK Shared Business Services Ltd,11/01/2023,3rd party IT Services,SHARP,IBM United Kingdom Ltd,99875708,"66,000.00",Computer Consumables,PO6 3AU
"Department for Business, Innovation and Skills",UK Shared Business Services Ltd,12/01/2023,Contract Staff,Project Office,Calder Conference Ltd,99819631,"2,299.99",Conference & Venues,LS16 6RF
"Department for Business, Innovation and Skills",UK Shared Business Services Ltd,12/01/2023,PAYE Payable Salaries,Balance Sheet,HM Revenue & Customs,99874462,"256,731.21",HMRC monthly deductions for SSC December 2022,3RD PARTY PAYME
"Department for Business, Innovation and Skills",UK Shared Business Services Ltd,12/01/2023,NI Payable Salaries,Balance Sheet,HM Revenue & Customs,99874463,"324,518.25",HMRC monthly deductions for SSC December 2022,3RD PARTY PAYME
"Department for Business, Innovation and Skills",UK Shared Business Services Ltd,12/01/2023,Student Loans,Balance Sheet,HM Revenue & Customs,99874464,"4,729.00",HMRC monthly deductions for SSC December 2022,3RD PARTY PAYME
"Department for Business, Innovation and Skills",UK Shared Business Services Ltd,12/01/2023,Apprenticeship Levy,Corporate HR,HM Revenue & Customs,99874465,"8,436.00",HMRC monthly deductions for SSC December 2022,3RD PARTY PAYME
"Department for Business, Innovation and Skills",UK Shared Business Services Ltd,12/01/2023,Staff Training,HRSD Recoverables,The Retirement Counselling Service Ltd,99876499,"1,452.00",Training,GU34 5HT
"Department for Business, Innovation and Skills",UK Shared Business Services Ltd,12/01/2023,Corporate Events,Executive Function,Calder Conference Ltd,99877505,"6,340.00",Conference & Venues,LS16 6RF
"Department for Business, Innovation and Skills",UK Shared Business Services Ltd,12/01/2023,Conferences & Seminars,Procurement Policy & Strategy,Calder Conference Ltd,99877512,"1,311.00",Conference & Venues,LS16 6RF
"Department for Business, Innovation and Skills",UK Shared Business Services Ltd,12/01/2023,Contract Staff,Production Services,Proventeq Limited,99877659,"67,662.00",Computer Consumables,RG6 6BU
"Department for Business, Innovation and Skills",UK Shared Business Services Ltd,12/01/2023,Staff Training,HRSD Recoverables,Feldman Ltd T/A Brian Feldman and Associates,99877667,780.00,Training,SW15 5RH
"Department for Business, Innovation and Skills",UK Shared Business Services Ltd,12/01/2023,T&S - Other Charges,Finance Operations 1,Unspecified,99877763,52.85,Miscellaneous (Actuals),HOME
"Department for Business, Innovation and Skills",UK Shared Business Services Ltd,12/01/2023,T&S - Other Charges,"Risk, Information & Security Compliance",Unspecified,99877764,55.00,Miscellaneous (Actuals),HOME
"Department for Business, Innovation and Skills",UK Shared Business Services Ltd,12/01/2023,T&S - Subsistence,Contact Centres,Unspecified,99877766,33.00,Evening Meal (Actuals),HOME
"Department for Business, Innovation and Skills",UK Shared Business Services Ltd,13/01/2023,IT Cloud Services,Production Services,Softcat plc,99850797,"4,424.47",Computing Software,SL7 1LW
"Department for Business, Innovation and Skills",UK Shared Business Services Ltd,13/01/2023,IT Cloud Services,Production Services,Softcat plc,99850797,"20,638.80",Computing Software,SL7 1LW
"Department for Business, Innovation and Skills",UK Shared Business Services Ltd,13/01/2023,IT Cloud Services,Production Services,Softcat plc,99850797,"27,526.20",Computing Software,SL7 1LW
"Department for Business, Innovation and Skills",UK Shared Business Services Ltd,13/01/2023,IT Cloud Services,Production Services,Softcat plc,99850797,"27,526.20",Computing Software,SL7 1LW
"Department for Business, Innovation and Skills",UK Shared Business Services Ltd,13/01/2023,IT Cloud Services,Production Services,Softcat plc,99850797,"27,526.20",Computing Software,SL7 1LW
"Department for Business, Innovation and Skills",UK Shared Business Services Ltd,13/01/2023,IT Cloud Services,Production Services,Softcat plc,99850797,"19,819.80",Computing Software,SL7 1LW
"Department for Business, Innovation and Skills",UK Shared Business Services Ltd,13/01/2023,IT Cloud Services,Production Services,Softcat plc,99850797,"6,879.60",Computing Software,SL7 1LW
"Department for Business, Innovation and Skills",UK Shared Business Services Ltd,13/01/2023,Computing Consumables,Production Services,Probrand Ltd,99874376,"1,140.00",Computer Consumables,SMARTFORM
"Department for Business, Innovation and Skills",UK Shared Business Services Ltd,13/01/2023,Voluntary Deductions,Balance Sheet,Civil Service Benevolent Fund,99874466,18.00,SSC THIRD PARTY PAYMENTS December2022,SM3 8DY
"Department for Business, Innovation and Skills",UK Shared Business Services Ltd,13/01/2023,Union Deductions,Balance Sheet,PCS Union,99874467,978.99,SSC THIRD PARTY PAYMENTS December2022,SW11 2LN
"Department for Business, Innovation and Skills",UK Shared Business Services Ltd,13/01/2023,Voluntary Deductions,Balance Sheet,Swindon Office Sports and Social Club,99874468,186.00,SSC THIRD PARTY PAYMENTS December2022,SN2 1EU
"Department for Business, Innovation and Skills",UK Shared Business Services Ltd,13/01/2023,Ees Pension Deductions - JSS,Balance Sheet,RCPS Pension,99874469,"99,880.97",RCPS monthly contributions for SSC December2022,SN2 1UY.
"Department for Business, Innovation and Skills",UK Shared Business Services Ltd,13/01/2023,Ers Pension Deductions - JSS,Balance Sheet,RCPS Pension,99874470,"451,578.39",RCPS monthly contributions for SSC December2022,SN2 1UY.
"Department for Business, Innovation and Skills",UK Shared Business Services Ltd,13/01/2023,Other Pension Deductions,Balance Sheet,Scottish Widows,99874471,100.00,SSC THIRD PARTY PAYMENTS December2022,EH16 5BU
"Department for Business, Innovation and Skills",UK Shared Business Services Ltd,13/01/2023,Partnership Pension Deductions,Balance Sheet,Scottish Widows,99874472,"4,284.59",SSC THIRD PARTY PAYMENTS December2022,EH16 5BU
"Department for Business, Innovation and Skills",UK Shared Business Services Ltd,13/01/2023,Partnership Pension Deductions,Balance Sheet,Standard Life Assurance Ltd,99874473,"2,672.21",SSC THIRD PARTY PAYMENTS December2022,EH1 2DH
"Department for Business, Innovation and Skills",UK Shared Business Services Ltd,13/01/2023,Ees Pension Deductions - MRC,Balance Sheet,JLT Pensions Administration Ltd T/A JLT Employee Benefits,99874474,"4,452.32",SSC THIRD PARTY PAYMENTS December2022,PRINCIPAL SECTI
"Department for Business, Innovation and Skills",UK Shared Business Services Ltd,13/01/2023,Ers Pension Deductions - MRC,Balance Sheet,JLT Pensions Administration Ltd T/A JLT Employee Benefits,99874475,"11,576.18",SSC THIRD PARTY PAYMENTS December2022,PRINCIPAL SECTI
"Department for Business, Innovation and Skills",UK Shared Business Services Ltd,13/01/2023,Voluntary Deductions,Balance Sheet,BHCA (Services) Ltd,99874476,59.15,SSC THIRD PARTY PAYMENTS December2022,NN14 1UE
"Department for Business, Innovation and Skills",UK Shared Business Services Ltd,13/01/2023,Ees Pension Deductions - MyCSP,Balance Sheet,Cabinet Office RM Shared Services,99874477,173.70,UKSBS THIRD PARTY PAYMENTS December 2022,FY5 3TA
"Department for Business, Innovation and Skills",UK Shared Business Services Ltd,13/01/2023,Ers Pension Deductions - MyCSP,Balance Sheet,Cabinet Office RM Shared Services,99874478,863.70,UKSBS THIRD PARTY PAYMENTS December 2022,FY5 3TA
"Department for Business, Innovation and Skills",UK Shared Business Services Ltd,13/01/2023,Data Storage & Recovery,Finance Operations 1,Restore plc,99876560,967.74,Computing Services,RH1 5DY
"Department for Business, Innovation and Skills",UK Shared Business Services Ltd,13/01/2023,Staff Training,HRSD Recoverables,Feldman Ltd T/A Brian Feldman and Associates,99877668,780.00,Training,SW15 5RH
"Department for Business, Innovation and Skills",UK Shared Business Services Ltd,13/01/2023,Staff Training,HRSD Recoverables,ASK Europe PLC,99878278,840.00,Training,MK43 0BT
"Department for Business, Innovation and Skills",UK Shared Business Services Ltd,13/01/2023,Staff Training,HRSD Recoverables,ASK Europe PLC,99878303,"1,008.00",Training,MK43 0BT
"Department for Business, Innovation and Skills",UK Shared Business Services Ltd,13/01/2023,Staff Training,HRSD Recoverables,ASK Europe PLC,99878305,840.00,Training,MK43 0BT
"Department for Business, Innovation and Skills",UK Shared Business Services Ltd,13/01/2023,Staff Training,HRSD Recoverables,ASK Europe PLC,99878319,504.00,Training,MK43 0BT
"Department for Business, Innovation and Skills",UK Shared Business Services Ltd,13/01/2023,Health & Safety (inc. Medicals & Opticians),Finance Operations 1,Unspecified,99878997,80.00,Medical Fees & Vaccinations (Actuals),HOME
"Department for Business, Innovation and Skills",UK Shared Business Services Ltd,13/01/2023,T&S - Parking Tolls Congestion Charges,Operational Excellence,Unspecified,99878998,10.00,"Parking, Tolls, Congestion Charge",HOME
"Department for Business, Innovation and Skills",UK Shared Business Services Ltd,16/01/2023,Computing Consumables,SIAM,KTSL Ltd,99859518,277.56,Computer Consumables,SN13 9RS
"Department for Business, Innovation and Skills",UK Shared Business Services Ltd,16/01/2023,Computing Consumables,Executive Function,Unspecified,99874719,"6,338.88",GPC_Computer Consumables,HOME
"Department for Business, Innovation and Skills",UK Shared Business Services Ltd,16/01/2023,GPC Clearing - SSC,Balance Sheet,Unspecified,99874719,"-6,338.88",Unspecified,HOME
"Department for Business, Innovation and Skills",UK Shared Business Services Ltd,16/01/2023,GPC Clearing - SSC,Balance Sheet,Unspecified,99877765,-40.16,Unspecified,HOME
"Department for Business, Innovation and Skills",UK Shared Business Services Ltd,16/01/2023,Health & Safety (inc. Medicals & Opticians),Facilities,Unspecified,99877765,40.16,GPC_Health & Safety,HOME
"Department for Business, Innovation and Skills",UK Shared Business Services Ltd,16/01/2023,Other Staff Benefits,People,Amazon EU SARL,99878861,400.00,ZZ-Employee Benefits,EC2A 2FA
"Department for Business, Innovation and Skills",UK Shared Business Services Ltd,16/01/2023,Legal & Professional Services,Corporate HR,Ideagen Gael Ltd,99879153,71.39,Professional Services,G75 0RD
"Department for Business, Innovation and Skills",UK Shared Business Services Ltd,16/01/2023,Health & Safety (inc. Medicals & Opticians),People,Swindon Occupational Medical Services Ltd,99879188,760.00,Professional Services,GL7 7AL
"Department for Business, Innovation and Skills",UK Shared Business Services Ltd,16/01/2023,International Subscriptions,Procurement Policy & Strategy,Experian Ltd,99879219,584.40,ZZ-Memberships,NG80 1ZZ
"Department for Business, Innovation and Skills",UK Shared Business Services Ltd,16/01/2023,Contract Staff,People,Alexander Mann Solutions Ltd,99879226,"3,780.40",Recruitment Services,EC2N 3AQ
"Department for Business, Innovation and Skills",UK Shared Business Services Ltd,16/01/2023,Recruitment Costs,ROE Application Upgrade,Alexander Mann Solutions Ltd,99879230,"3,272.35",Recruitment Services,EC2N 3AQ
"Department for Business, Innovation and Skills",UK Shared Business Services Ltd,16/01/2023,Contract Staff,D&I Management,Alexander Mann Solutions Ltd,99879254,"2,118.82",Recruitment Services,EC2N 3AQ
"Department for Business, Innovation and Skills",UK Shared Business Services Ltd,16/01/2023,Contract Staff,SHARP,Alexander Mann Solutions Ltd,99879260,"3,387.66",Recruitment Services,EC2N 3AQ
"Department for Business, Innovation and Skills",UK Shared Business Services Ltd,16/01/2023,UK - Professional Memberships & Subscriptions,Project Office,Unspecified,99879963,349.00,Professional Subscriptions (Actuals),HOME
"Department for Business, Innovation and Skills",UK Shared Business Services Ltd,17/01/2023,T&S - Public Transport,Contact Centres,Unspecified,99868123,48.50,Public Transport - Taxi Fare (Actuals),HOME
"Department for Business, Innovation and Skills",UK Shared Business Services Ltd,17/01/2023,T&S - Subsistence,Contact Centres,Unspecified,99868123,45.90,Evening Meal (Actuals),HOME
"Department for Business, Innovation and Skills",UK Shared Business Services Ltd,17/01/2023,T&S - Other Charges,Contact Centres,Unspecified,99874552,200.00,Home-working Equipment,HOME
"Department for Business, Innovation and Skills",UK Shared Business Services Ltd,17/01/2023,Recruitment Costs,Corporate HR,Agenda Resource Management Ltd,99879304,502.84,Professional Services,HU12 8YJ
"Department for Business, Innovation and Skills",UK Shared Business Services Ltd,17/01/2023,Staff Training,HRSD Recoverables,ASK Europe PLC,99879737,"1,008.00",Training,MK43 0BT
"Department for Business, Innovation and Skills",UK Shared Business Services Ltd,17/01/2023,Staff Training,HRSD Recoverables,ASK Europe PLC,99879740,840.00,Training,MK43 0BT
"Department for Business, Innovation and Skills",UK Shared Business Services Ltd,17/01/2023,International Subscriptions,Procurement Policy & Strategy,Experian Ltd,99879754,12.00,ZZ-Memberships,NG80 1ZZ
"Department for Business, Innovation and Skills",UK Shared Business Services Ltd,17/01/2023,International Subscriptions,Procurement Policy & Strategy,Experian Ltd,99879756,90.00,ZZ-Memberships,NG80 1ZZ
"Department for Business, Innovation and Skills",UK Shared Business Services Ltd,17/01/2023,Staff Training,HRSD Recoverables,ASK Europe PLC,99880028,840.00,Training,MK43 0BT
"Department for Business, Innovation and Skills",UK Shared Business Services Ltd,17/01/2023,Staff Training,HRSD Recoverables,ASK Europe PLC,99880029,840.00,Training,MK43 0BT
"Department for Business, Innovation and Skills",UK Shared Business Services Ltd,17/01/2023,Staff Training,HRSD Recoverables,ASK Europe PLC,99880030,504.00,Training,MK43 0BT
"Department for Business, Innovation and Skills",UK Shared Business Services Ltd,17/01/2023,Staff Training,HRSD Recoverables,ASK Europe PLC,99880031,504.00,Training,MK43 0BT
"Department for Business, Innovation and Skills",UK Shared Business Services Ltd,17/01/2023,Telecoms - Maintenance & Repairs,Production Services,SCB Global Ltd,99880271,261.59,Computer Consumables,E14 5AA
"Department for Business, Innovation and Skills",UK Shared Business Services Ltd,17/01/2023,Conferences & Seminars,Corporate HR,Unspecified,99880310,115.00,Conference/Course Fees (Actuals),HOME
"Department for Business, Innovation and Skills",UK Shared Business Services Ltd,17/01/2023,T&S - Parking Tolls Congestion Charges,UK SBS Data,Unspecified,99880311,11.00,"Parking, Tolls, Congestion Charge",HOME
"Department for Business, Innovation and Skills",UK Shared Business Services Ltd,18/01/2023,Nursery Deductions,Balance Sheet,EDENRED (UK GROUP) LTD,99875092,"1,091.00",SR11454604 CHILDCARE VOUCHERS THROUGH BENEFICIARY ACCOUNTS,SW1V 2RS
"Department for Business, Innovation and Skills",UK Shared Business Services Ltd,18/01/2023,Computer Software Licences,Production Services,Trustmarque Solutions Ltd,99878296,"27,936.00",Computer Consumables,YO41 1LZ
"Department for Business, Innovation and Skills",UK Shared Business Services Ltd,18/01/2023,Computer Software Licences,Production Services,Trustmarque Solutions Ltd,99878296,"30,078.00",Computer Consumables,YO41 1LZ
"Department for Business, Innovation and Skills",UK Shared Business Services Ltd,18/01/2023,Computer Software Licences,Production Services,Trustmarque Solutions Ltd,99878296,"2,187.00",Computer Consumables,YO41 1LZ
"Department for Business, Innovation and Skills",UK Shared Business Services Ltd,18/01/2023,Computer Software Licences,Production Services,Trustmarque Solutions Ltd,99878296,"2,187.00",Computer Consumables,YO41 1LZ
"Department for Business, Innovation and Skills",UK Shared Business Services Ltd,18/01/2023,Computer Software Licences,Production Services,Trustmarque Solutions Ltd,99878296,"12,426.00",Computer Consumables,YO41 1LZ
"Department for Business, Innovation and Skills",UK Shared Business Services Ltd,18/01/2023,Computer Software Licences,Production Services,Trustmarque Solutions Ltd,99878296,"49,581.00",Computer Consumables,YO41 1LZ
"Department for Business, Innovation and Skills",UK Shared Business Services Ltd,18/01/2023,Computer Software Licences,Production Services,Trustmarque Solutions Ltd,99878296,"53,564.26",Computer Consumables,YO41 1LZ
"Department for Business, Innovation and Skills",UK Shared Business Services Ltd,18/01/2023,Computer Hardware,Production Services,Curvature Solutions Ltd,99880339,360.00,Computing Hardware,B45 9PZ
"Department for Business, Innovation and Skills",UK Shared Business Services Ltd,18/01/2023,Staff Training,HRSD Recoverables,ASK Europe PLC,99880408,"1,008.00",Training,MK43 0BT
"Department for Business, Innovation and Skills",UK Shared Business Services Ltd,18/01/2023,T&S - Parking Tolls Congestion Charges,UK SBS Data,Unspecified,99881646,11.00,"Parking, Tolls, Congestion Charge",HOME
"Department for Business, Innovation and Skills",UK Shared Business Services Ltd,18/01/2023,UK - Professional Memberships & Subscriptions,Accounting,Unspecified,99881647,329.00,Professional Subscriptions (Actuals),HOME
"Department for Business, Innovation and Skills",UK Shared Business Services Ltd,19/01/2023,Recruitment Costs,Production Services,Hays Specialist Recruitment Ltd,99869002,"7,144.63",Recruitment Services,KT3 4QF
"Department for Business, Innovation and Skills",UK Shared Business Services Ltd,19/01/2023,Contract Staff,Production Services,Hays Specialist Recruitment Ltd,99869010,"6,819.88",Recruitment Services,KT3 4QF
"Department for Business, Innovation and Skills",UK Shared Business Services Ltd,19/01/2023,Contract Staff,Production Services,Hays Specialist Recruitment Ltd,99869015,"7,144.63",Recruitment Services,KT3 4QF
"Department for Business, Innovation and Skills",UK Shared Business Services Ltd,19/01/2023,Health & Safety (inc. Medicals & Opticians),People,Benenden Healthcare Society,99880772,"21,622.30",Professional Services,YO26 4GG
"Department for Business, Innovation and Skills",UK Shared Business Services Ltd,19/01/2023,Computer Software,SIAM,Softcat plc,99880854,"2,549.38",Computing Software,SL7 1LW
"Department for Business, Innovation and Skills",UK Shared Business Services Ltd,19/01/2023,Telecoms - Land Line Rental,Production Services,British Telecom Plc (BT),99880867,"12,636.91",SR11468804 REGULAR CHARGES 1/9/22-31/1/23,S98 1BT
"Department for Business, Innovation and Skills",UK Shared Business Services Ltd,19/01/2023,Contract Staff,Production Services,Hays Specialist Recruitment Ltd,99881839,"6,819.88",Recruitment Services,KT3 4QF
"Department for Business, Innovation and Skills",UK Shared Business Services Ltd,19/01/2023,T&S - Public Transport,Partnership Management,Unspecified,99881885,2.00,Public Transport - Bus (Actuals),HOME
"Department for Business, Innovation and Skills",UK Shared Business Services Ltd,19/01/2023,T&S - Public Transport,Partnership Management,Unspecified,99881885,69.00,Public Transport - Taxi Fare (Actuals),HOME
"Department for Business, Innovation and Skills",UK Shared Business Services Ltd,19/01/2023,T&S - Subsistence,Partnership Management,Unspecified,99881885,14.74,Evening Meal (Actuals),HOME
"Department for Business, Innovation and Skills",UK Shared Business Services Ltd,19/01/2023,T&S - Subsistence,Partnership Management,Unspecified,99881885,9.44,Lunch (Actuals),HOME
"Department for Business, Innovation and Skills",UK Shared Business Services Ltd,19/01/2023,T&S - Other Charges,"Risk, Information & Security Compliance",Unspecified,99881886,3.03,Miscellaneous (Actuals),HOME
"Department for Business, Innovation and Skills",UK Shared Business Services Ltd,19/01/2023,UK - Professional Memberships & Subscriptions,"Risk, Information & Security Compliance",Unspecified,99881886,102.90,Professional Subscriptions (Actuals),HOME
"Department for Business, Innovation and Skills",UK Shared Business Services Ltd,23/01/2023,Computer Software Licences,Production Services,Bottomline Technologies Ltd,99845595,"45,762.62",Computer Consumables,RG7 4SA
"Department for Business, Innovation and Skills",UK Shared Business Services Ltd,23/01/2023,Contract Staff,Project Office,Alexander Mann Solutions Ltd,99871353,"7,298.28",Recruitment Services,EC2N 3AQ
"Department for Business, Innovation and Skills",UK Shared Business Services Ltd,23/01/2023,Contract Staff,Project Office,Alexander Mann Solutions Ltd,99872334,"3,649.14",Recruitment Services,EC2N 3AQ
"Department for Business, Innovation and Skills",UK Shared Business Services Ltd,23/01/2023,Contract Staff,Project Office,Alexander Mann Solutions Ltd,99873457,"2,189.48",Recruitment Services,EC2N 3AQ
"Department for Business, Innovation and Skills",UK Shared Business Services Ltd,23/01/2023,Computer Software Licences,Production Services,Bottomline Technologies Ltd,99879797,"-45,762.62",Computer Consumables,RG7 4SA
"Department for Business, Innovation and Skills",UK Shared Business Services Ltd,23/01/2023,GPC Clearing - SSC,Balance Sheet,Unspecified,99880308,-122.47,Unspecified,HOME
"Department for Business, Innovation and Skills",UK Shared Business Services Ltd,23/01/2023,GPC Sundry Expenditure,D&I Management,Unspecified,99880308,122.47,GPC_Miscellaneous GPC Expenditure,HOME
"Department for Business, Innovation and Skills",UK Shared Business Services Ltd,23/01/2023,GPC Clearing - SSC,Balance Sheet,Unspecified,99880309,-506.57,Unspecified,HOME
"Department for Business, Innovation and Skills",UK Shared Business Services Ltd,23/01/2023,GPC Sundry Expenditure,D&I Management,Unspecified,99880309,506.57,GPC_Miscellaneous GPC Expenditure,HOME
"Department for Business, Innovation and Skills",UK Shared Business Services Ltd,23/01/2023,Computing Consumables,Production Services,Probrand Ltd,99881504,"1,080.00",Computer Consumables,SMARTFORM
"Department for Business, Innovation and Skills",UK Shared Business Services Ltd,23/01/2023,Computing Consumables,Production Services,Probrand Ltd,99881504,2.40,Computer Consumables,SMARTFORM
"Department for Business, Innovation and Skills",UK Shared Business Services Ltd,23/01/2023,Recruitment Costs,Corporate HR,Agenda Resource Management Ltd,99881862,584.38,Professional Services,HU12 8YJ
"Department for Business, Innovation and Skills",UK Shared Business Services Ltd,23/01/2023,Staff Training,HRSD Recoverables,ASK Europe PLC,99881979,840.00,Training,MK43 0BT
"Department for Business, Innovation and Skills",UK Shared Business Services Ltd,23/01/2023,Staff Training,HRSD Recoverables,ASK Europe PLC,99882005,504.00,Training,MK43 0BT
"Department for Business, Innovation and Skills",UK Shared Business Services Ltd,23/01/2023,Staff Training,HRSD Recoverables,ASK Europe PLC,99882017,504.00,Training,MK43 0BT
"Department for Business, Innovation and Skills",UK Shared Business Services Ltd,23/01/2023,T&S - Accommodation,People,Unspecified,99882241,72.00,Accommodation - Hotels Elsewhere Actuals,HOME
"Department for Business, Innovation and Skills",UK Shared Business Services Ltd,23/01/2023,T&S - Subsistence,People,Unspecified,99882241,4.20,Breakfast (Actuals),HOME
"Department for Business, Innovation and Skills",UK Shared Business Services Ltd,23/01/2023,T&S - Subsistence,People,Unspecified,99882241,14.99,Evening Meal (Actuals),HOME
"Department for Business, Innovation and Skills",UK Shared Business Services Ltd,23/01/2023,T&S - Vehicle Hire,People,Unspecified,99882241,108.00,Vehicle Hire/Rental/Fuel (Actuals),HOME
"Department for Business, Innovation and Skills",UK Shared Business Services Ltd,23/01/2023,UK - Professional Memberships & Subscriptions,Corporate Finance,Unspecified,99882242,283.00,Professional Subscriptions (Actuals),HOME
"Department for Business, Innovation and Skills",UK Shared Business Services Ltd,23/01/2023,T&S - Other Charges,Project Office,Unspecified,99882243,120.69,Home-working Equipment,HOME
"Department for Business, Innovation and Skills",UK Shared Business Services Ltd,23/01/2023,T&S - Parking Tolls Congestion Charges,Operational Excellence,Unspecified,99882244,10.00,"Parking, Tolls, Congestion Charge",HOME
"Department for Business, Innovation and Skills",UK Shared Business Services Ltd,23/01/2023,T&S - Public Transport,Partnership Management,Unspecified,99882245,15.00,Public Transport - Taxi Fare (Actuals),HOME
"Department for Business, Innovation and Skills",UK Shared Business Services Ltd,23/01/2023,T&S - Public Transport,Partnership Management,Unspecified,99882245,2.50,Public Transport - Train (Actuals),HOME
"Department for Business, Innovation and Skills",UK Shared Business Services Ltd,23/01/2023,Conferences & Seminars,Production Services,Melksham Town Football Club Ltd,99883268,258.00,Conference & Venues,SN12 7GU
"Department for Business, Innovation and Skills",UK Shared Business Services Ltd,23/01/2023,Staff Training,HRSD Recoverables,ASK Europe PLC,99883278,504.00,Training,MK43 0BT
"Department for Business, Innovation and Skills",UK Shared Business Services Ltd,23/01/2023,Staff Training,HRSD Recoverables,ASK Europe PLC,99883280,840.00,Training,MK43 0BT
"Department for Business, Innovation and Skills",UK Shared Business Services Ltd,24/01/2023,Contract Staff,Corporate Commercial,Alexander Mann Solutions Ltd,99832033,"9,454.68",Recruitment Services,EC2N 3AQ
"Department for Business, Innovation and Skills",UK Shared Business Services Ltd,24/01/2023,Contract Staff,Corporate Commercial,Alexander Mann Solutions Ltd,99843757,"3,151.56",Recruitment Services,EC2N 3AQ
"Department for Business, Innovation and Skills",UK Shared Business Services Ltd,24/01/2023,Contract Staff,Corporate Commercial,Alexander Mann Solutions Ltd,99846114,"3,151.56",Recruitment Services,EC2N 3AQ
"Department for Business, Innovation and Skills",UK Shared Business Services Ltd,24/01/2023,Contract Staff,Corporate Commercial,Alexander Mann Solutions Ltd,99879238,"2,521.25",Recruitment Services,EC2N 3AQ
"Department for Business, Innovation and Skills",UK Shared Business Services Ltd,24/01/2023,Contract Staff,Production Services,Alexander Mann Solutions Ltd,99879252,"2,192.59",Recruitment Services,EC2N 3AQ
"Department for Business, Innovation and Skills",UK Shared Business Services Ltd,24/01/2023,IT Cloud Services,Production Services,Academia Ltd,99881959,"4,094.40",Computing Software,HP2 7DW
"Department for Business, Innovation and Skills",UK Shared Business Services Ltd,24/01/2023,IT Cloud Services,Production Services,Academia Ltd,99881959,"1,736.86",Computing Software,HP2 7DW
"Department for Business, Innovation and Skills",UK Shared Business Services Ltd,24/01/2023,IT Cloud Services,Production Services,Academia Ltd,99881959,"1,416.00",Computing Software,HP2 7DW
"Department for Business, Innovation and Skills",UK Shared Business Services Ltd,24/01/2023,Computer Software,Production Services,Deloitte LLP,99883202,720.00,Computer Consumables,EC4A 3HQ
"Department for Business, Innovation and Skills",UK Shared Business Services Ltd,24/01/2023,Contract Staff,Grants CRs,Alexander Mann Solutions Ltd,99883682,"3,465.30",Recruitment Services,EC2N 3AQ
"Department for Business, Innovation and Skills",UK Shared Business Services Ltd,24/01/2023,Contract Staff,Production Services,Alexander Mann Solutions Ltd,99883695,"2,740.74",Recruitment Services,EC2N 3AQ
"Department for Business, Innovation and Skills",UK Shared Business Services Ltd,24/01/2023,Contract Staff,Production Services,Alexander Mann Solutions Ltd,99883720,"2,463.70",Recruitment Services,EC2N 3AQ
"Department for Business, Innovation and Skills",UK Shared Business Services Ltd,24/01/2023,Staff Training,HRSD Recoverables,ASK Europe PLC,99883799,840.00,Training,MK43 0BT
"Department for Business, Innovation and Skills",UK Shared Business Services Ltd,24/01/2023,Staff Training,HRSD Recoverables,ASK Europe PLC,99883804,840.00,Training,MK43 0BT
"Department for Business, Innovation and Skills",UK Shared Business Services Ltd,24/01/2023,Contract Staff,SHARP,Alexander Mann Solutions Ltd,99883846,"3,387.66",Recruitment Services,EC2N 3AQ
"Department for Business, Innovation and Skills",UK Shared Business Services Ltd,24/01/2023,T&S - Public Transport,Communications,Unspecified,99883998,11.30,Public Transport - Taxi Fare (Actuals),HOME
"Department for Business, Innovation and Skills",UK Shared Business Services Ltd,24/01/2023,T&S - Mileage,Communications,Unspecified,99883999,52.20,Mileage - Car (excl Home to Office),HOME
"Department for Business, Innovation and Skills",UK Shared Business Services Ltd,24/01/2023,UK - Professional Memberships & Subscriptions,Resourcing,Unspecified,99884000,189.00,Professional Subscriptions (Actuals),HOME
"Department for Business, Innovation and Skills",UK Shared Business Services Ltd,24/01/2023,T&S - Public Transport,Resourcing,Unspecified,99884001,14.00,Public Transport - Taxi Fare (Actuals),HOME
"Department for Business, Innovation and Skills",UK Shared Business Services Ltd,24/01/2023,T&S - Subsistence,Resourcing,Unspecified,99884001,44.34,Evening Meal (Actuals),HOME
"Department for Business, Innovation and Skills",UK Shared Business Services Ltd,24/01/2023,T&S - Subsistence,Resourcing,Unspecified,99884001,23.80,Lunch (Actuals),HOME
"Department for Business, Innovation and Skills",UK Shared Business Services Ltd,24/01/2023,UK - Professional Memberships & Subscriptions,SIAM,Unspecified,99884002,152.00,Professional Subscriptions (Actuals),HOME
"Department for Business, Innovation and Skills",UK Shared Business Services Ltd,24/01/2023,UK - Professional Memberships & Subscriptions,Performance Analysis,Unspecified,99884003,175.00,Professional Subscriptions (Actuals),HOME
"Department for Business, Innovation and Skills",UK Shared Business Services Ltd,24/01/2023,T&S - Public Transport,Operational Excellence,Unspecified,99884004,16.40,Public Transport - Taxi Fare (Actuals),HOME
"Department for Business, Innovation and Skills",UK Shared Business Services Ltd,24/01/2023,T&S - Subsistence,Operational Excellence,Unspecified,99884004,50.00,Evening Meal (Actuals),HOME
"Department for Business, Innovation and Skills",UK Shared Business Services Ltd,24/01/2023,T&S - Subsistence,Operational Excellence,Unspecified,99884004,39.77,Lunch (Actuals),HOME
"Department for Business, Innovation and Skills",UK Shared Business Services Ltd,24/01/2023,T&S - Vehicle Hire,Operational Excellence,Unspecified,99884004,71.12,Vehicle Hire/Rental/Fuel (Actuals),HOME
"Department for Business, Innovation and Skills",UK Shared Business Services Ltd,24/01/2023,Other Staff Benefits,People,Amazon EU SARL,99884507,475.00,ZZ-Employee Benefits,EC2A 2FA
"Department for Business, Innovation and Skills",UK Shared Business Services Ltd,24/01/2023,Recruitment Costs,ROE Application Upgrade,Alexander Mann Solutions Ltd,99884609,"4,090.44",Recruitment Services,EC2N 3AQ
"Department for Business, Innovation and Skills",UK Shared Business Services Ltd,24/01/2023,Staff Training,HRSD Recoverables,ASK Europe PLC,99884741,504.00,Training,MK43 0BT
"Department for Business, Innovation and Skills",UK Shared Business Services Ltd,25/01/2023,Computer Software Licences,Production Services,Phoenix Software Ltd,99868884,"1,237.68",Computing Software,YO42 1NS
"Department for Business, Innovation and Skills",UK Shared Business Services Ltd,25/01/2023,Computer Software Licences,Production Services,Phoenix Software Ltd,99868884,118.51,Computing Software,YO42 1NS
"Department for Business, Innovation and Skills",UK Shared Business Services Ltd,25/01/2023,Computer Software Licences,Production Services,Phoenix Software Ltd,99868884,236.88,Computing Software,YO42 1NS
"Department for Business, Innovation and Skills",UK Shared Business Services Ltd,25/01/2023,Computer Software Licences,Production Services,Phoenix Software Ltd,99868884,"110,880.01",Computing Software,YO42 1NS
"Department for Business, Innovation and Skills",UK Shared Business Services Ltd,25/01/2023,Computer Software Licences,Production Services,Phoenix Software Ltd,99868884,"1,085.76",Computing Software,YO42 1NS
"Department for Business, Innovation and Skills",UK Shared Business Services Ltd,25/01/2023,Computer Software Licences,Production Services,Phoenix Software Ltd,99868884,"4,171.39",Computing Software,YO42 1NS
"Department for Business, Innovation and Skills",UK Shared Business Services Ltd,25/01/2023,Computer Software Licences,Production Services,Phoenix Software Ltd,99868884,"4,087.87",Computing Software,YO42 1NS
"Department for Business, Innovation and Skills",UK Shared Business Services Ltd,25/01/2023,Computer Software Licences,Production Services,Phoenix Software Ltd,99868884,221.18,Computing Software,YO42 1NS
"Department for Business, Innovation and Skills",UK Shared Business Services Ltd,25/01/2023,Computer Software Licences,Production Services,Phoenix Software Ltd,99868884,"4,060.80",Computing Software,YO42 1NS
"Department for Business, Innovation and Skills",UK Shared Business Services Ltd,25/01/2023,Computer Software Licences,Production Services,Phoenix Software Ltd,99868884,"6,624.00",Computing Software,YO42 1NS
"Department for Business, Innovation and Skills",UK Shared Business Services Ltd,25/01/2023,Computer Software Licences,Production Services,Phoenix Software Ltd,99868884,"6,624.00",Computing Software,YO42 1NS
"Department for Business, Innovation and Skills",UK Shared Business Services Ltd,25/01/2023,Computer Software Licences,Production Services,Phoenix Software Ltd,99868884,"15,330.82",Computing Software,YO42 1NS
"Department for Business, Innovation and Skills",UK Shared Business Services Ltd,25/01/2023,Computer Software Licences,Production Services,Phoenix Software Ltd,99868884,"8,087.47",Computing Software,YO42 1NS
"Department for Business, Innovation and Skills",UK Shared Business Services Ltd,25/01/2023,Computer Software Licences,Production Services,Phoenix Software Ltd,99868884,"1,332.29",Computing Software,YO42 1NS
"Department for Business, Innovation and Skills",UK Shared Business Services Ltd,25/01/2023,Computer Software Licences,Production Services,Phoenix Software Ltd,99868884,"5,328.00",Computing Software,YO42 1NS
"Department for Business, Innovation and Skills",UK Shared Business Services Ltd,25/01/2023,Computer Software Licences,Production Services,Phoenix Software Ltd,99868884,"2,511.94",Computing Software,YO42 1NS
"Department for Business, Innovation and Skills",UK Shared Business Services Ltd,25/01/2023,Computer Software Licences,Production Services,Phoenix Software Ltd,99868884,"9,136.80",Computing Software,YO42 1NS
"Department for Business, Innovation and Skills",UK Shared Business Services Ltd,25/01/2023,Computer Software Licences,Production Services,Phoenix Software Ltd,99868884,"6,624.00",Computing Software,YO42 1NS
"Department for Business, Innovation and Skills",UK Shared Business Services Ltd,25/01/2023,Computer Software Licences,Production Services,Phoenix Software Ltd,99868884,686.30,Computing Software,YO42 1NS
"Department for Business, Innovation and Skills",UK Shared Business Services Ltd,25/01/2023,Computer Software Licences,Production Services,Phoenix Software Ltd,99868884,"27,463.68",Computing Software,YO42 1NS
"Department for Business, Innovation and Skills",UK Shared Business Services Ltd,25/01/2023,Computer Software Licences,Production Services,Phoenix Software Ltd,99868884,445.82,Computing Software,YO42 1NS
"Department for Business, Innovation and Skills",UK Shared Business Services Ltd,25/01/2023,Computer Software Licences,SIAM,Phoenix Software Ltd,99868949,"1,719.36",Computing Software,YO42 1NS
"Department for Business, Innovation and Skills",UK Shared Business Services Ltd,25/01/2023,Health & Safety (inc. Medicals & Opticians),People,Swindon Occupational Medical Services Ltd,99884269,"1,520.00",Professional Services,GL7 7AL
"Department for Business, Innovation and Skills",UK Shared Business Services Ltd,25/01/2023,Staff Training,HRSD Recoverables,Feldman Ltd T/A Brian Feldman and Associates,99884360,780.00,Training,SW15 5RH
"Department for Business, Innovation and Skills",UK Shared Business Services Ltd,25/01/2023,Staff Training,HRSD Recoverables,Feldman Ltd T/A Brian Feldman and Associates,99884361,780.00,Training,SW15 5RH
"Department for Business, Innovation and Skills",UK Shared Business Services Ltd,25/01/2023,Staff Training,HRSD Recoverables,Feldman Ltd T/A Brian Feldman and Associates,99884362,"1,320.00",Training,SW15 5RH
"Department for Business, Innovation and Skills",UK Shared Business Services Ltd,25/01/2023,Staff Training,HRSD Recoverables,Feldman Ltd T/A Brian Feldman and Associates,99884369,780.00,Training,SW15 5RH
"Department for Business, Innovation and Skills",UK Shared Business Services Ltd,25/01/2023,Computer Software,SIAM,Softcat plc,99885023,"2,617.20",Computing Software,SL7 1LW
"Department for Business, Innovation and Skills",UK Shared Business Services Ltd,25/01/2023,T&S - Other Charges,Resourcing,Unspecified,99885514,132.32,Home-working Equipment,HOME
"Department for Business, Innovation and Skills",UK Shared Business Services Ltd,25/01/2023,T&S - Mileage,Operational Excellence,Unspecified,99885515,13.50,Mileage - Car (excl Home to Office),HOME
"Department for Business, Innovation and Skills",UK Shared Business Services Ltd,25/01/2023,T&S - Public Transport,Operational Excellence,Unspecified,99885515,23.80,Public Transport - Taxi Fare (Actuals),HOME
"Department for Business, Innovation and Skills",UK Shared Business Services Ltd,25/01/2023,T&S - Parking Tolls Congestion Charges,Operational Assurance,Unspecified,99885516,6.00,"Parking, Tolls, Congestion Charge",HOME
"Department for Business, Innovation and Skills",UK Shared Business Services Ltd,25/01/2023,T&S - Subsistence,Operational Assurance,Unspecified,99885516,2.90,Breakfast (Actuals),HOME
"Department for Business, Innovation and Skills",UK Shared Business Services Ltd,25/01/2023,T&S - Subsistence,Operational Assurance,Unspecified,99885516,35.85,Evening Meal (Actuals),HOME
"Department for Business, Innovation and Skills",UK Shared Business Services Ltd,25/01/2023,T&S - Subsistence,Operational Assurance,Unspecified,99885516,15.00,Lunch (Actuals),HOME
"Department for Business, Innovation and Skills",UK Shared Business Services Ltd,25/01/2023,T&S - Vehicle Hire,Operational Assurance,Unspecified,99885516,46.18,Vehicle Hire/Rental/Fuel (Actuals),HOME
"Department for Business, Innovation and Skills",UK Shared Business Services Ltd,25/01/2023,T&S - Public Transport,Resourcing,Unspecified,99885517,50.00,Public Transport - Taxi Fare (Actuals),HOME
"Department for Business, Innovation and Skills",UK Shared Business Services Ltd,25/01/2023,T&S - Subsistence,Resourcing,Unspecified,99885517,32.00,Evening Meal (Actuals),HOME
"Department for Business, Innovation and Skills",UK Shared Business Services Ltd,25/01/2023,T&S - Subsistence,Resourcing,Unspecified,99885517,4.35,Lunch (Actuals),HOME
"Department for Business, Innovation and Skills",UK Shared Business Services Ltd,26/01/2023,Computing Consumables,SIAM,Phoenix Software Ltd,99869012,"11,286.42",Computer Consumables,YO42 1NS
"Department for Business, Innovation and Skills",UK Shared Business Services Ltd,26/01/2023,Computing Consumables,SIAM,Phoenix Software Ltd,99880088,3.37,Computer Consumables,YO42 1NS
"Department for Business, Innovation and Skills",UK Shared Business Services Ltd,26/01/2023,Computing Consumables,SIAM,Phoenix Software Ltd,99882066,"14,435.39",Computer Consumables,YO42 1NS
"Department for Business, Innovation and Skills",UK Shared Business Services Ltd,27/01/2023,Staff Training,Executive Function,Civil Service College,99874723,714.00,Training,SW1H 9BU
"Department for Business, Innovation and Skills",UK Shared Business Services Ltd,27/01/2023,Recruitment Costs,Corporate HR,Agenda Resource Management Ltd,99885707,502.84,Professional Services,HU12 8YJ
"Department for Business, Innovation and Skills",UK Shared Business Services Ltd,27/01/2023,T&S - Parking Tolls Congestion Charges,Operational Excellence,Unspecified,99886227,10.00,"Parking, Tolls, Congestion Charge",HOME
"Department for Business, Innovation and Skills",UK Shared Business Services Ltd,30/01/2023,Other Staff Benefits,Corporate HR,EDENRED (UK GROUP) LTD,99836884,"5,796.73",Professional Services,SW1V 2RS
"Department for Business, Innovation and Skills",UK Shared Business Services Ltd,30/01/2023,Staff Training,HRSD Recoverables,Feldman Ltd T/A Brian Feldman and Associates,99886859,780.00,Training,SW15 5RH
"Department for Business, Innovation and Skills",UK Shared Business Services Ltd,30/01/2023,Staff Training,HRSD Recoverables,ASK Europe PLC,99886889,840.00,Training,MK43 0BT
"Department for Business, Innovation and Skills",UK Shared Business Services Ltd,30/01/2023,Staff Training,HRSD Recoverables,ASK Europe PLC,99886891,"1,008.00",Training,MK43 0BT
"Department for Business, Innovation and Skills",UK Shared Business Services Ltd,30/01/2023,Staff Training,HRSD Recoverables,ASK Europe PLC,99886892,840.00,Training,MK43 0BT
"Department for Business, Innovation and Skills",UK Shared Business Services Ltd,30/01/2023,Staff Training,HRSD Recoverables,ASK Europe PLC,99886895,504.00,Training,MK43 0BT
"Department for Business, Innovation and Skills",UK Shared Business Services Ltd,30/01/2023,Staff Training,HRSD Recoverables,ASK Europe PLC,99886896,840.00,Training,MK43 0BT
"Department for Business, Innovation and Skills",UK Shared Business Services Ltd,30/01/2023,Staff Training,HRSD Recoverables,ASK Europe PLC,99886897,840.00,Training,MK43 0BT
"Department for Business, Innovation and Skills",UK Shared Business Services Ltd,30/01/2023,Other Staff Benefits,People,Health Assured Ltd,99887069,"2,880.00",Professional Services,M4 4FB
"Department for Business, Innovation and Skills",UK Shared Business Services Ltd,30/01/2023,Corporate Events,Executive Function,Calder Conference Ltd,99887178,"2,172.79",Conference & Venues,LS16 6RF
"Department for Business, Innovation and Skills",UK Shared Business Services Ltd,30/01/2023,Staff Training,HRSD Recoverables,ASK Europe PLC,99887182,840.00,Training,MK43 0BT
"Department for Business, Innovation and Skills",UK Shared Business Services Ltd,30/01/2023,GPC Clearing - SSC,Balance Sheet,Unspecified,99887468,-743.55,Unspecified,HOME
"Department for Business, Innovation and Skills",UK Shared Business Services Ltd,30/01/2023,Hardware/Software Maintenance,D&I Management,Unspecified,99887468,743.55,GPC_Computer Hardware/Software Maint,HOME
"Department for Business, Innovation and Skills",UK Shared Business Services Ltd,30/01/2023,UK - Professional Memberships & Subscriptions,"Risk, Information & Security Compliance",Unspecified,99887469,90.00,Professional Subscriptions (Actuals),HOME
"Department for Business, Innovation and Skills",UK Shared Business Services Ltd,30/01/2023,T&S - Other Charges,Contact Centres,Unspecified,99887470,55.00,Miscellaneous (Actuals),HOME
"Department for Business, Innovation and Skills",UK Shared Business Services Ltd,30/01/2023,T&S - Public Transport,Contact Centres,Unspecified,99887470,98.00,Public Transport - Train (Actuals),HOME
"Department for Business, Innovation and Skills",UK Shared Business Services Ltd,30/01/2023,Consultancy Services,Executive Function,Unspecified,99887471,384.00,GPC_Professional Services,HOME
"Department for Business, Innovation and Skills",UK Shared Business Services Ltd,30/01/2023,GPC Clearing - SSC,Balance Sheet,Unspecified,99887471,-384.00,Unspecified,HOME
"Department for Business, Innovation and Skills",UK Shared Business Services Ltd,31/01/2023,Computer Software Licences,Production Services,Phoenix Software Ltd,99885368,"13,575.07",Computing Software,YO42 1NS
"Department for Business, Innovation and Skills",UK Shared Business Services Ltd,31/01/2023,Computer Software Licences,Production Services,Phoenix Software Ltd,99885592,"9,191.52",Computing Software,YO42 1NS
"Department for Business, Innovation and Skills",UK Shared Business Services Ltd,31/01/2023,Computer Software Licences,Production Services,Phoenix Software Ltd,99885592,"4,736.69",Computing Software,YO42 1NS
"Department for Business, Innovation and Skills",UK Shared Business Services Ltd,31/01/2023,Computer Software Licences,Production Services,Phoenix Software Ltd,99885592,"3,232.15",Computing Software,YO42 1NS
"Department for Business, Innovation and Skills",UK Shared Business Services Ltd,31/01/2023,Computer Software Licences,Production Services,Phoenix Software Ltd,99885592,"12,523.03",Computing Software,YO42 1NS
"Department for Business, Innovation and Skills",UK Shared Business Services Ltd,31/01/2023,Computer Software Licences,Production Services,Phoenix Software Ltd,99885592,"80,135.02",Computing Software,YO42 1NS
"Department for Business, Innovation and Skills",UK Shared Business Services Ltd,31/01/2023,Computer Software Licences,Production Services,Phoenix Software Ltd,99885592,"6,010.13",Computing Software,YO42 1NS
"Department for Business, Innovation and Skills",UK Shared Business Services Ltd,31/01/2023,Computer Software Licences,Production Services,Phoenix Software Ltd,99886279,"28,626.77",Computing Software,YO42 1NS
"Department for Business, Innovation and Skills",UK Shared Business Services Ltd,31/01/2023,Computer Software Licences,Production Services,Phoenix Software Ltd,99886279,"11,419.20",Computing Software,YO42 1NS
"Department for Business, Innovation and Skills",UK Shared Business Services Ltd,31/01/2023,Contract Staff,SHARP,Alexander Mann Solutions Ltd,99887736,"3,387.66",Recruitment Services,EC2N 3AQ
"Department for Business, Innovation and Skills",UK Shared Business Services Ltd,31/01/2023,Contract Staff,Grants CRs,Alexander Mann Solutions Ltd,99887772,"3,465.30",Recruitment Services,EC2N 3AQ
"Department for Business, Innovation and Skills",UK Shared Business Services Ltd,31/01/2023,Contract Staff,Corporate Commercial,Alexander Mann Solutions Ltd,99887775,"6,303.12",Recruitment Services,EC2N 3AQ
"Department for Business, Innovation and Skills",UK Shared Business Services Ltd,31/01/2023,Contract Staff,Production Services,Alexander Mann Solutions Ltd,99887776,"6,930.60",Recruitment Services,EC2N 3AQ
"Department for Business, Innovation and Skills",UK Shared Business Services Ltd,31/01/2023,Contract Staff,Production Services,Alexander Mann Solutions Ltd,99887777,"2,740.74",Recruitment Services,EC2N 3AQ
"Department for Business, Innovation and Skills",UK Shared Business Services Ltd,31/01/2023,Contract Staff,Production Services,Alexander Mann Solutions Ltd,99887783,"3,079.62",Recruitment Services,EC2N 3AQ
"Department for Business, Innovation and Skills",UK Shared Business Services Ltd,31/01/2023,Recruitment Costs,ROE Application Upgrade,Alexander Mann Solutions Ltd,99887829,"4,090.44",Recruitment Services,EC2N 3AQ
"Department for Business, Innovation and Skills",UK Shared Business Services Ltd,31/01/2023,Contract Staff,D&I Management,Alexander Mann Solutions Ltd,99887838,"5,297.04",Recruitment Services,EC2N 3AQ
"Department for Business, Innovation and Skills",UK Shared Business Services Ltd,31/01/2023,Contract Staff,People,Alexander Mann Solutions Ltd,99887842,"4,252.94",Recruitment Services,EC2N 3AQ
"Department for Business, Innovation and Skills",UK Shared Business Services Ltd,31/01/2023,Secondments,Corporate HR,Department for Business Energy & Industrial Strategy,99888534,"46,001.22",Marion Lloyd charges - 21/22.,SW1H 0ET
"Department for Business, Innovation and Skills",UK Shared Business Services Ltd,31/01/2023,T&S - Mileage,Contact Centres,Unspecified,99888586,246.15,Mileage - Car (excl Home to Office),HOME
"Department for Business, Innovation and Skills",UK Shared Business Services Ltd,31/01/2023,T&S - Parking Tolls Congestion Charges,Contact Centres,Unspecified,99888586,12.00,"Parking, Tolls, Congestion Charge",HOME
"Department for Business, Innovation and Skills",UK Shared Business Services Ltd,31/01/2023,T&S - Subsistence,Contact Centres,Unspecified,99888586,18.00,Evening Meal (Actuals),HOME
"Department for Business, Innovation and Skills",UK Shared Business Services Ltd,31/01/2023,T&S - Subsistence,Contact Centres,Unspecified,99888586,17.30,Lunch (Actuals),HOME
"Department for Business, Innovation and Skills",UK Shared Business Services Ltd,04/01/2023,Bank Charges,Corporate Finance,,,-7.79,Bank Charges,
"Department for Business, Innovation and Skills",UK Shared Business Services Ltd,03/01/2023,Bank Charges,Corporate Finance,,,108.70,Bank Charges,
"Department for Business, Innovation and Skills",UK Shared Business Services Ltd,30/01/2023,Bank Charges,Corporate Finance,,,"1,141.50",Bank Charges,
